bitfinex/quotes_SOLUSD_20260314
["timestamp","ask_amount","ask_price","bid_price","bid_amount"]
[1773490724990,11.4949135,86.995,86.975,0.45318241]
[1773490726391,0.47939394,86.995,86.975,0.45318241]
[1773490741201,7.34,87.018,86.981,0.48022143]
[1773490741202,0.49040733,87.017,86.981,0.48022143]
[1773490741388,0.49040733,87.017,86.976,11.49742457]
[1773490741389,0.49040733,87.017,86.991,0.48022143]
[1773490741887,0.49040733,87.016,86.991,0.48022143]
[1773490744399,11.49227144,87.015,86.983,0.48022143]
[1773490744696,0.49040733,86.989,86.964,0.48022143]
[1773490748693,0.49040733,86.989,86.966,0.48022143]
[1773490750105,0.49040733,86.989,86.967,11.49861441]
[1773490750291,0.49040733,86.989,86.968,0.48022143]
[1773490753114,0.49040733,86.989,86.969,11.49834998]
[1773490753302,0.49040733,86.989,86.969,11.97857141]
[1773490754106,0.49040733,86.989,86.97,0.48022143]
[1773490758697,3.74838897,87.0,86.97,0.48022143]
[1773490760617,0.40586678,86.997,86.97,0.48022143]
[1773490763903,0.40586678,86.989,86.96,0.4814015]
[1773490765526,0.40586678,86.987,86.96,0.4814015]
[1773490768030,0.40586678,86.985,86.96,0.4814015]
[1773490769823,0.40586678,86.985,86.962,0.4814015]
[1773490770406,11.49610282,86.986,86.95,32.50041727]
[1773490770407,11.49610282,86.986,86.964,0.4814015]
[1773490770805,29.1428202,86.996,86.964,0.4814015]
[1773490770806,11.49561917,86.99,86.964,0.4814015]
[1773490773230,0.40586678,86.991,86.965,11.49887885]
[1773490773727,0.40586678,86.991,86.966,0.4814015]
[1773490774326,11.4955742,86.99,86.966,0.4814015]
[1773490774926,11.49440426,86.999,86.971,0.4814015]
[1773490775527,0.40586678,87.004,86.971,0.4814015]
[1773490775730,0.40586678,87.004,86.967,11.49861441]
[1773490775731,3.74838897,87.03,86.991,0.4814015]
[1773490775907,0.40586678,87.029,86.991,0.4814015]
[1773490776826,0.40586678,87.027,86.993,0.4814015]
[1773490777510,0.40586678,87.019,86.993,0.4814015]
[1773490783136,0.40586678,87.017,86.993,0.4814015]
[1773490786135,0.40586678,87.015,86.993,0.4814015]
[1773490786747,11.49213937,87.016,86.995,0.4814015]
[1773490787035,0.40586678,87.029,87.001,0.4814015]
[1773490788027,11.49015867,87.031,87.01,3.74838897]
[1773490788338,11.49015867,87.031,87.011,0.4814015]
[1773490794446,0.47393878,87.029,87.001,11.4940389]
[1773490795522,0.47393878,87.029,86.99,3.74838897]
[1773490795742,0.47393878,87.029,86.991,11.49544205]
[1773490796318,11.49055476,87.028,86.993,11.49517777]
[1773490796522,11.49055476,87.028,86.994,0.48355592]
[1773490796523,0.47393878,87.027,86.994,0.48355592]
[1773490799343,0.47393878,87.025,86.996,0.48355592]
[1773490801337,0.47393878,87.023,86.996,0.48355592]
[1773490801738,0.47393878,87.019,86.996,0.48355592]
[1773490804153,0.47393878,87.017,86.996,0.48355592]
[1773490805142,0.47393878,87.017,86.991,0.48355592]
[1773490805345,0.47393878,87.017,86.987,11.97947349]
[1773490805547,0.47393878,87.017,86.988,0.48355592]
[1773490807358,0.47393878,87.015,86.988,0.48355592]
[1773490810257,0.47393878,87.013,86.988,0.48355592]
[1773490810934,0.47393878,87.023,86.991,0.48355592]
[1773490811150,11.49134701,87.022,86.991,0.48355592]
[1773490813254,11.49134701,87.022,86.99,3.74616747]
[1773490813255,11.49134701,87.022,86.993,0.48355592]
[1773490813633,11.96528579,87.022,86.993,0.48355592]
[1773490813830,0.47393878,87.022,86.993,0.48355592]
[1773490814253,0.47393878,87.022,87.0,3.74616747]
[1773490814440,0.47393878,87.022,87.001,0.48355592]
[1773490814758,11.49147906,87.021,87.001,0.48355592]
[1773490817256,0.47393878,87.026,87.001,0.48355592]
[1773490819361,0.47393878,87.024,87.001,0.48355592]
[1773490822341,0.45913289,87.022,87.001,0.48355592]
[1773490823545,0.45913289,87.02,87.001,0.48355592]
[1773490824643,11.4901573,87.032,87.003,0.49860371]
[1773490825351,11.48950106,87.036,87.011,0.49860371]
[1773490825542,11.48950106,87.036,87.013,0.49860371]
[1773490825959,11.94863395,87.036,87.013,0.49860371]
[1773490827960,11.48950106,87.036,87.015,0.49860371]
[1773490829661,0.45913289,87.036,87.015,0.49860371]
[1773490831267,0.45913289,87.034,87.015,0.49860371]
[1773490834774,0.45913289,87.038,87.015,0.49860371]
[1773490837380,0.45913289,87.036,87.015,0.49860371]
[1773490840386,11.4896306,87.035,87.015,0.49860371]
[1773490840683,0.45913289,87.034,87.015,0.49860371]
[1773490851995,11.48908044,87.04,87.017,0.45646688]
[1773490852200,7.34,87.046,87.016,11.49213937]
[1773490852201,0.45319022,87.043,87.021,0.45646688]
[1773490855513,0.45319022,87.043,87.023,0.45646688]
[1773490856404,0.45319022,87.041,87.023,0.45646688]
[1773490856605,7.34,87.046,87.023,0.45646688]
[1773490857005,7.79319022,87.046,87.023,0.45646688]
[1773490857205,0.45319022,87.045,87.023,0.45646688]
[1773490857411,11.94180304,87.043,87.023,0.45646688]
[1773490859016,0.45319022,87.042,87.023,0.45646688]
[1773490860616,7.34,87.057,87.03,3.74616747]
[1773490860808,7.34,87.057,87.031,0.45646688]
[1773490861121,0.45319022,87.056,87.031,0.45646688]
[1773490861621,11.48699098,87.055,87.031,0.45646688]
[1773490861800,0.45319022,87.054,87.031,0.45646688]
[1773490863916,0.45319022,87.052,87.031,0.45646688]
[1773490866123,0.45319022,87.05,87.031,0.45646688]
[1773490867319,0.45319022,87.048,87.031,0.45646688]
[1773490874617,0.45319022,87.046,87.031,0.45646688]
[1773490875013,0.45319022,87.046,87.02,3.74358582]
[1773490875214,0.45319022,87.039,87.011,11.49279976]
[1773490876632,11.48685903,87.056,87.021,0.45646688]
[1773490878638,0.45319022,87.053,87.023,0.45646688]
[1773490882046,0.48377215,87.051,87.025,0.45222533]
[1773490885239,11.48765077,87.05,87.026,11.49081883]
[1773490885439,0.48377215,87.049,87.027,0.45222533]
[1773490885948,11.48765077,87.05,87.027,0.45222533]
[1773490886252,11.97142292,87.05,87.027,0.45222533]
[1773490888256,11.97142292,87.05,87.028,11.49055476]
[1773490888546,11.97142292,87.05,87.029,0.45222533]
[1773490889451,7.34,87.057,87.029,0.45222533]
[1773490889452,0.48377215,87.049,87.029,0.45222533]
[1773490891054,11.48745561,87.052,87.029,0.45222533]
[1773490893957,0.48377215,87.051,87.029,0.45222533]
[1773490894351,0.48377215,87.049,87.029,0.45222533]
[1773490894753,0.48377215,87.049,87.013,61.6]
[1773490894952,0.48377215,87.049,87.0,3.74358582]
[1773490894953,0.48377215,87.039,87.003,7.34]
[1773490895138,0.48377215,87.039,86.977,4.82477569]
[1773490895139,0.48377215,87.029,86.99,3.74358582]
[1773490896237,0.48377215,87.029,86.991,11.49544205]
[1773490896238,11.49055476,87.028,86.991,11.49544205]
[1773490896438,0.48377215,87.027,86.991,11.49544205]
[1773490896844,0.48377215,87.027,86.992,0.45222533]
[1773490899873,0.48377215,87.025,86.994,0.45222533]
[1773490901348,0.48377215,87.025,87.001,0.45222533]
[1773490902059,0.48377215,87.025,87.003,0.45222533]
[1773490905264,0.48377215,87.025,87.005,0.45222533]
[1773490912058,0.46541133,87.023,87.005,0.45222533]
[1773490912554,0.46541133,87.019,86.991,11.49544205]
[1773490912755,0.46541133,87.019,86.991,11.96995376]
[1773490913186,0.46541133,87.019,86.992,0.47451171]
[1773490914106,0.46541133,87.017,86.992,0.47451171]
[1773490915390,0.46541133,87.015,86.992,0.47451171]
[1773490917125,0.46541133,87.015,86.993,11.49517777]
[1773490917312,0.46541133,87.015,86.994,0.47451171]
[1773490917908,0.46541133,87.013,86.994,0.47451171]
[1773490918289,7.34,87.044,87.002,0.47451171]
[1773490918489,0.46541133,87.042,87.02,3.74358582]
[1773490918991,0.46541133,87.042,87.02,4.21809753]
[1773490919490,0.46541133,87.042,87.021,0.47451171]
[1773490919792,0.46541133,87.042,87.01,3.74358582]
[1773490919992,0.46541133,87.037,87.01,3.74358582]
[1773490920192,0.46541133,87.037,87.006,0.47451171]
[1773490920392,0.46541133,87.037,87.007,0.47451171]
[1773490920711,0.46541133,87.037,87.008,0.47451171]
[1773490921887,0.46541133,87.037,87.021,0.47451171]
[1773490922086,11.48949859,87.036,87.021,0.47451171]
[1773490922691,0.46541133,87.044,87.023,0.47451171]
[1773490922895,36.05618786,87.059,87.031,0.47451171]
[1773490922896,11.95302242,87.051,87.031,0.47451171]
[1773490923401,0.46541133,87.059,87.04,3.74358582]
[1773490923712,0.46541133,87.059,87.04,3.74214832]
[1773490924116,0.46541133,87.057,87.04,3.74214832]
[1773490924602,0.46541133,87.057,87.037,0.47451171]
[1773490926707,0.46541133,87.057,87.039,0.47451171]
[1773490932141,0.46541133,87.055,87.039,0.47451171]
[1773490933412,0.46541133,87.053,87.039,0.47451171]
[1773490934621,0.46541133,87.059,87.031,0.47451171]
[1773490936326,11.48659514,87.058,87.031,0.47451171]
[1773490936506,0.46541133,87.057,87.031,0.47451171]
[1773490939121,0.46541133,87.055,87.033,0.47451171]
[1773490941429,0.4794822,87.053,87.033,0.47451171]
[1773490942329,0.4794822,87.053,87.033,0.45441407]
[1773490943231,0.1,87.06,87.033,0.45441407]
[1773490943232,0.4794822,87.059,87.033,0.45441407]
[1773490943437,0.4794822,87.059,87.035,0.45441407]
[1773490943825,0.4794822,87.058,87.041,0.45441407]
[1773490944123,0.1,87.06,87.041,0.45441407]
[1773490945922,0.1,87.06,87.041,11.94315627]
[1773490946124,0.1,87.06,87.042,0.45441407]
[1773490947837,0.1,87.06,87.043,11.48857461]
[1773490948018,0.1,87.06,87.044,0.45441407]
[1773490951437,0.5794822,87.06,87.044,0.45441407]
[1773490951834,0.5794822,87.06,87.022,28.72832019]
[1773490952041,0.5794822,87.06,87.03,3.74214832]
[1773490953943,0.4794822,87.059,87.033,0.20281566]
[1773490955939,0.4794822,87.059,87.035,0.20281566]
[1773490957547,0.4794822,87.059,87.037,0.20281566]
[1773490960443,0.4794822,87.059,87.038,11.69205024]
[1773490960645,0.4794822,87.059,87.039,0.20281566]
[1773490961935,0.1,87.06,87.041,0.20281566]
[1773490963646,0.5794822,87.06,87.031,0.20281566]
[1773490964442,0.5794822,87.06,87.032,0.20281566]
[1773490966349,0.4794822,87.059,87.033,11.48989463]
[1773490966553,0.1,87.08,87.034,0.20281566]
[1773490966856,0.4794822,87.079,87.051,0.20281566]
[1773490968455,0.4794822,87.078,87.053,0.20281566]
[1773490971556,0.46132896,87.076,87.053,0.20281566]
[1773490971850,0.46132896,87.076,87.046,11.48808398]
[1773490974850,11.48435256,87.075,87.044,0.20281566]
[1773490975257,0.46132896,87.074,87.044,0.20281566]
[1773490978559,0.46132896,87.072,87.045,11.48831064]
[1773490979148,0.46132896,87.072,87.045,11.6911263]
[1773490979658,0.46132896,87.07,87.045,11.6911263]
[1773490981855,0.46132896,87.068,87.045,11.6911263]
[1773490982063,0.46132896,87.068,87.046,0.20281566]
[1773490983665,0.46132896,87.068,87.047,11.48804668]
[1773490985353,0.46132896,87.068,87.047,11.69086234]
[1773490985961,0.46132896,87.068,87.048,0.20281566]
[1773490986247,0.46132896,87.059,87.03,0.20281566]
[1773490986548,0.46132896,87.071,87.041,0.20281566]
[1773490987965,28.70995897,87.078,87.04,3.74215321]
[1773490987966,0.46132896,87.069,87.043,0.20281566]
[1773490988261,0.46132896,87.074,87.051,0.20281566]
[1773490988444,0.1,87.08,87.061,0.20281566]
[1773490988863,0.56132896,87.08,87.061,0.20281566]
[1773490992770,0.56132896,87.08,87.062,11.4860674]
[1773490993867,0.56132896,87.08,87.058,0.20281566]
[1773490994073,0.56132896,87.08,87.051,0.20281566]
[1773490995470,0.46132896,87.078,87.054,0.20281566]
[1773490996557,0.46132896,87.078,87.055,11.68980664]
[1773490998170,0.46132896,87.078,87.055,11.48699098]
[1773490998373,0.46132896,87.078,87.056,0.20281566]
[1773490998574,0.1,87.08,87.042,61.6]
[1773490998575,0.46132896,87.076,87.042,61.6]
[1773490998759,0.46132896,87.069,87.041,0.20281566]
[1773490999774,0.46132896,87.069,87.04,3.74215321]
[1773490999775,0.46132896,87.069,87.043,0.20281566]
[1773491001277,0.46132896,87.069,87.044,11.69125828]
[1773491002675,0.46132896,87.069,87.045,0.20281566]
[1773491005378,0.46132896,87.069,87.046,11.48817866]
[1773491007162,0.46132896,87.069,87.046,0.20281566]
[1773491010066,0.46132896,87.069,87.047,11.48804668]
[1773491015276,0.1,87.08,87.061,0.20281566]
[1773491015470,0.48304301,87.079,87.061,0.20281566]
[1773491016284,0.48304301,87.079,87.051,0.20281566]
[1773491017066,0.48304301,87.079,87.053,0.20281566]
[1773491018991,0.48304301,87.079,87.06,3.74215321]
[1773491021970,0.48304301,87.079,87.06,3.94496887]
[1773491023790,0.1,87.09,87.071,0.20281566]
[1773491023978,0.1,87.1,87.081,0.10281566]
[1773491025392,0.1,87.1,87.081,11.48356128]
[1773491025600,0.1,87.1,87.082,0.10281566]
[1773491028002,0.58304301,87.1,87.082,0.10281566]
[1773491030792,0.1,87.1,87.082,0.10281566]
[1773491030996,0.46380727,87.099,87.072,11.48469071]
[1773491034307,0.48524501,87.097,87.072,11.48469071]
[1773491038703,0.48524501,87.097,87.072,11.58750637]
[1773491041298,11.48158354,87.096,87.072,11.58750637]
[1773491041490,0.48524501,87.095,87.072,11.58750637]
[1773491041689,0.48524501,87.095,87.07,3.74215321]
[1773491041690,0.48524501,87.095,87.066,11.48553382]
[1773491042009,0.48524501,87.089,87.066,11.48553382]
[1773491042601,0.48524501,87.088,87.061,11.48607645]
[1773491042809,0.48524501,87.079,87.042,7.42281566]
[1773491042996,0.48524501,87.079,87.043,0.10281566]
[1773491044404,11.48395691,87.078,87.043,0.10281566]
[1773491044745,0.48524501,87.077,87.043,0.10281566]
[1773491048810,0.1,87.1,87.061,0.45830625]
[1773491048811,3.84159909,87.1,87.061,0.45830625]
[1773491049111,11.48118807,87.099,87.061,0.45830625]
[1773491050797,0.48524501,87.096,87.063,0.45830625]
[1773491052007,0.48524501,87.089,87.063,0.45830625]
[1773491055598,0.48524501,87.089,87.064,11.48580354]
[1773491055797,0.48524501,87.089,87.064,11.94410979]
[1773491057012,0.48524501,87.089,87.064,11.48580354]
[1773491057218,0.48524501,87.089,87.065,0.45830625]
[1773491057814,0.48524501,87.089,87.066,11.4855397]
[1773491058503,0.48524501,87.089,87.066,11.94384595]
[1773491060698,0.48524501,87.089,87.067,0.45830625]
[1773491062505,0.48524501,87.089,87.067,11.94364027]
[1773491064626,0.48524501,87.089,87.067,0.45259368]
[1773491066225,0.48376271,87.087,87.067,11.93791169]
[1773491066819,0.48376271,87.079,87.048,61.6]
[1773491067019,0.48376271,87.079,87.044,11.48844262]
[1773491067321,0.48376271,87.079,87.05,3.74159909]
[1773491068219,0.48376271,87.079,87.051,11.48751881]
[1773491068828,0.48376271,87.079,87.052,0.13546699]
[1773491078135,0.48376271,87.079,87.051,11.48751881]
[1773491078136,0.1,87.1,87.071,0.13546699]
[1773491078331,0.1,87.1,87.09,3.74159909]
[1773491078734,0.6,87.1,87.08,3.74159909]
[1773491079431,0.6,87.1,87.081,11.48356128]
[1773491087840,0.1,87.1,87.09,3.74159909]
[1773491088430,0.1,87.1,87.081,40.19246448]
[1773491092050,0.1,87.1,87.09,3.74159909]
[1773491093246,0.1,87.1,87.091,11.48224271]
[1773491093843,0.1,87.11,87.091,11.48224271]
[1773491095139,0.6,87.11,87.091,11.48224271]
[1773491097855,0.5,87.109,87.1,3.74159909]
[1773491098059,0.5,87.109,87.091,11.48224271]
[1773491098556,0.5,87.109,87.071,61.6]
[1773491098735,0.5,87.109,87.08,3.74159909]
[1773491101957,0.5,87.107,87.081,11.48356128]
[1773491103552,0.1,87.11,87.09,3.74159909]
[1773491105737,0.1,87.11,87.091,11.48224271]
[1773491107647,0.1,87.11,87.09,3.73729584]
[1773491108455,0.5,87.109,87.09,3.73729584]
[1773491109452,0.5,87.109,87.091,11.48224271]
[1773491109658,0.1,87.11,87.091,11.48224271]
[1773491109958,0.1,87.11,87.1,3.73729584]
[1773491110258,0.6,87.11,87.1,3.73729584]
[1773491112060,0.6,87.11,87.096,11.48147384]
[1773491113561,0.6,87.11,87.09,3.73729584]
[1773491116464,0.6,87.11,87.091,11.48224271]
[1773491118952,0.6,87.11,87.1,3.73729584]
[1773491124874,0.6,87.11,87.09,3.73729584]
[1773491127675,0.6,87.11,87.1,3.73729584]
[1773491132558,0.6,87.11,87.101,11.48092444]
[1773491133272,0.6,87.11,87.09,3.73729584]
[1773491134476,0.6,87.11,87.091,11.48224271]
[1773491136183,0.6,87.11,87.09,3.73729584]
[1773491136377,0.6,87.11,87.091,11.48224271]
[1773491136980,3.73729584,87.1,87.062,28.71511891]
[1773491137177,0.5,87.089,87.057,11.48663248]
[1773491137585,0.5,87.089,87.06,3.73729584]
[1773491137785,0.5,87.089,87.07,3.73729584]
[1773491138786,0.5,87.089,87.071,11.48488015]
[1773491142297,0.5,87.089,87.061,11.48619933]
[1773491142890,11.48025882,87.107,87.071,0.47834295]
[1773491143095,11.48025882,87.107,87.081,0.47834295]
[1773491143700,0.1,87.11,87.09,3.73729584]
[1773491144208,0.1,87.11,87.089,0.47834295]
[1773491144797,11.93018685,87.109,87.089,0.47834295]
[1773491145004,0.45031681,87.108,87.089,0.47834295]
[1773491147106,0.45031681,87.108,87.085,0.47834295]
[1773491149623,0.45031681,87.108,87.086,11.48290195]
[1773491151525,0.45031681,87.108,87.086,0.4564742]
[1773491152619,0.45031681,87.108,87.087,11.4827701]
[1773491153022,0.45031681,87.108,87.087,11.9392443]
[1773491154130,0.45031681,87.108,87.088,0.4564742]
[1773491155729,0.45031681,87.108,87.089,11.4825064]
[1773491156924,0.45031681,87.108,87.089,0.4564742]
[1773491158324,0.45031681,87.108,87.089,11.93896892]
[1773491160318,3.73729584,87.1,87.07,3.73729584]
[1773491160517,3.73729584,87.1,87.068,11.48527587]
[1773491160518,0.46221461,87.099,87.068,11.48527587]
[1773491162124,0.46221461,87.089,87.068,11.48527587]
[1773491162329,0.46221461,87.087,87.055,11.48699098]
[1773491163121,0.46221461,87.079,87.055,11.48699098]
[1773491163631,0.46221461,87.079,87.055,11.94346518]
[1773491164037,0.46221461,87.079,87.056,0.4564742]
[1773491166844,0.46221461,87.079,87.055,11.48699098]
[1773491171524,0.46221461,87.069,87.053,37.20854513]
[1773491171727,0.46221461,87.069,87.053,36.40854513]
[1773491171943,0.46221461,87.069,87.053,36.20854513]
[1773491174052,0.46221461,87.078,87.055,0.4564742]
[1773491174231,0.46221461,87.083,87.055,0.4564742]
[1773491177851,0.46221461,87.083,87.056,11.48685903]
[1773491178154,0.46221461,87.087,87.061,0.4564742]
[1773491179652,0.46221461,87.086,87.061,0.4564742]
[1773491180052,0.46221461,87.086,87.062,11.4860674]
[1773491180244,0.46221461,87.086,87.063,0.4564742]
[1773491182337,0.48558288,87.084,87.063,0.4564742]
[1773491182543,0.48558288,87.079,87.059,0.49822181]
[1773491182854,0.48558288,87.079,87.058,11.48655991]
[1773491183149,0.48558288,87.079,87.059,0.49822181]
[1773491192351,0.48558288,87.077,87.059,0.49822181]
[1773491195154,0.48558288,87.086,87.061,0.49822181]
[1773491195855,11.48282843,87.087,87.061,0.49822181]
[1773491196961,0.48558288,87.088,87.063,0.49822181]
[1773491199258,0.48558288,87.087,87.065,0.49822181]
[1773491203670,7.32,87.099,87.053,36.20854513]
[1773491203671,0.48558288,87.079,87.057,0.49822181]
[1773491204466,0.48558288,87.079,87.058,11.48659514]
[1773491204969,0.48558288,87.078,87.058,11.48659514]
[1773491207264,0.48558288,87.078,87.058,0.49822181]
[1773491209371,0.48558288,87.078,87.059,11.4864632]
[1773491212571,0.48558288,87.078,87.059,0.48481727]
[1773491215674,0.48558288,87.078,87.059,11.97124092]
[1773491217857,0.48558288,87.078,87.06,0.48481727]
[1773491219863,0.65234388,87.078,87.06,11.97112531]
[1773491220163,0.47824915,87.077,87.06,11.97112531]
[1773491220480,0.47824915,87.077,87.054,0.48481727]
[1773491221364,0.47824915,87.077,87.053,36.20854513]
[1773491221365,3.74158499,87.07,87.053,36.20854513]
[1773491221572,0.47824915,87.069,87.053,36.20854513]
[1773491222167,0.47824915,87.067,87.053,36.20854513]
[1773491235084,0.47824915,87.066,87.053,36.20854513]
[1773491235788,11.48473129,87.073,87.054,0.48481727]
[1773491235978,11.48399779,87.078,87.054,0.48481727]
[1773491238373,11.48399779,87.078,87.055,11.48699098]
[1773491238585,11.48399779,87.078,87.056,0.48481727]
[1773491242880,11.48399779,87.078,87.057,11.48672708]
[1773491243081,11.48399779,87.078,87.058,0.4509652]
[1773491243392,11.48300679,87.086,87.058,0.4509652]
[1773491243699,0.49849559,87.069,87.053,36.20854513]
[1773491244009,4.24094348,87.06,87.053,36.20854513]
[1773491244488,0.49849559,87.06,87.053,36.20854513]
[1773491245400,11.48545751,87.067,87.053,36.20854513]
[1773491245704,0.49849559,87.066,87.053,36.20854513]
[1773491248802,3.74244789,87.07,87.053,36.20854513]
[1773491248803,0.49849559,87.064,87.053,36.20854513]
[1773491250095,0.49849559,87.081,87.054,0.4509652]
[1773491250297,11.9821058,87.081,87.055,0.4509652]
[1773491250609,11.48382503,87.079,87.055,0.4509652]
[1773491250902,0.49849559,87.078,87.055,0.4509652]
[1773491252002,0.49849559,87.083,87.055,0.4509652]
[1773491252590,3.74244789,87.08,87.055,0.4509652]
[1773491252789,0.49849559,87.079,87.055,0.4509652]
[1773491253503,11.98238452,87.079,87.055,0.4509652]
[1773491256809,0.49849559,87.078,87.055,0.4509652]
[1773491257307,11.48408879,87.077,87.055,0.4509652]
[1773491257517,11.98258438,87.077,87.055,0.4509652]
[1773491257694,0.49849559,87.076,87.055,0.4509652]
[1773491259014,0.49849559,87.074,87.055,0.4509652]
[1773491261532,0.49849559,87.072,87.055,0.4509652]
[1773491273441,11.48488015,87.071,87.055,0.4509652]
[1773491273626,0.4538647,87.07,87.055,0.4509652]
[1773491276142,11.48488015,87.071,87.055,0.4509652]
[1773491276143,0.4538647,87.075,87.055,0.4509652]
[1773491278739,11.93834916,87.074,87.055,0.4509652]
[1773491280243,0.4538647,87.073,87.055,0.4509652]
[1773491281545,3.74244789,87.08,87.057,0.49647646]
[1773491281737,0.4538647,87.084,87.057,0.49647646]
[1773491282245,3.74244789,87.08,87.057,0.49647646]
[1773491282646,4.19631259,87.08,87.057,0.49647646]
[1773491283553,0.4538647,87.078,87.057,0.49647646]
[1773491284647,0.4538647,87.076,87.057,0.49647646]
[1773491286548,3.74244789,87.07,87.057,0.49647646]
[1773491286754,103.4,87.108,87.057,0.49647646]
[1773491286755,11.48435256,87.075,87.057,0.49647646]
[1773491286952,0.4538647,87.074,87.057,0.49647646]
[1773491292658,11.48461635,87.073,87.057,0.49647646]
[1773491293736,0.4538647,87.072,87.054,0.49647646]
[1773491293957,0.4538647,87.072,87.053,36.20854513]
[1773491294249,0.4538647,87.072,87.053,36.70502159]
[1773491294457,0.4538647,87.072,87.054,0.49647646]
[1773491295354,0.4538647,87.059,87.034,0.49647646]
[1773491295562,3.84197914,87.05,87.034,0.49647646]
[1773491295755,0.1,87.049,87.034,0.49647646]
[1773491296058,0.1,87.049,87.026,0.49647646]
[1773491296059,0.1,87.048,87.026,0.49647646]
[1773491297256,11.48778274,87.049,87.026,0.49647646]
[1773491300144,0.1,87.048,87.026,0.49647646]
[1773491307977,3.74197914,87.04,87.026,0.49647646]
[1773491308672,0.1,87.039,87.021,0.45022768]
[1773491308860,0.1,87.029,87.012,0.45022768]
[1773491309262,3.74197914,87.03,87.012,0.45022768]
[1773491309759,3.74197914,87.03,87.014,0.45022768]
[1773491313173,11.49042273,87.029,87.014,0.45022768]
[1773491313577,0.1,87.019,87.003,0.45022768]
[1773491314074,3.74197914,87.01,87.0,0.2]
[1773491314284,3.74197914,87.01,87.0,0.65022768]
[1773491314583,3.74197914,87.01,87.001,0.45022768]
[1773491317186,0.1,87.018,87.001,0.45022768]
[1773491317864,3.74197914,87.01,87.001,0.45022768]
[1773491318478,3.74197914,87.02,87.001,0.45022768]
[1773491319089,3.74197914,87.01,87.001,0.45022768]
[1773491322087,4.21525935,87.01,86.981,11.49676366]
[1773491322404,11.49106868,87.025,86.99,3.74197914]
[1773491323173,0.47328021,87.034,87.0,3.74197914]
[1773491323978,0.47328021,87.034,87.001,0.45022768]
[1773491324380,11.96305343,87.034,87.002,11.49398864]
[1773491324582,11.96305343,87.034,87.003,0.45022768]
[1773491326775,11.96305343,87.034,87.005,0.45022768]
[1773491329687,11.96305343,87.034,87.007,0.49853621]
[1773491329882,0.49211219,87.033,87.007,0.49853621]
[1773491332801,0.49899988,87.031,87.007,0.49853621]
[1773491334603,0.49899988,87.031,87.009,0.47130717]
[1773491334804,29.38373331,87.046,87.021,0.4743861]
[1773491334805,0.66299998,87.046,87.021,0.4743861]
[1773491335304,12.15122052,87.046,87.021,0.4743861]
[1773491336707,12.15122052,87.046,87.023,0.4743861]
[1773491343109,12.20244832,87.046,87.023,0.4743861]
[1773491345398,12.15122052,87.046,87.023,0.4743861]
[1773491346507,12.20244832,87.046,87.023,0.4743861]
[1773491351108,12.20244832,87.046,87.025,0.4743861]
[1773491351109,12.15122052,87.046,87.025,0.4743861]
[1773491351294,11.48659514,87.058,87.025,0.47130717]
[1773491352210,11.73782294,87.058,87.025,0.47130717]
[1773491353402,0.2512278,87.057,87.027,0.47130717]
[1773491356717,11.48685903,87.056,87.028,11.49055476]
[1773491357020,11.48685903,87.056,87.029,0.47130717]
[1773491358614,0.2512278,87.057,87.029,0.47130717]
[1773491359404,11.73806571,87.057,87.031,0.47130717]
[1773491365126,11.48699098,87.055,87.031,0.47130717]
[1773491365313,11.73821878,87.055,87.031,0.47130717]
[1773491366827,0.2512278,87.054,87.031,0.47130717]
[1773491368032,3.99482954,87.05,87.031,0.47130717]
[1773491370741,0.2512278,87.05,87.031,0.47130717]
[1773491376642,0.2512278,87.054,87.031,0.47130717]
[1773491376833,0.2512278,87.054,87.033,0.45207115]
[1773491380747,11.73846108,87.054,87.033,0.45207115]
[1773491386749,0.2512278,87.053,87.033,0.45207115]
[1773491389148,11.73855534,87.053,87.033,0.45207115]
[1773491390245,0.2512278,87.052,87.033,0.45207115]
[1773491394358,11.73874661,87.051,87.033,0.45207115]
[1773491395970,0.2512278,87.05,87.033,0.45207115]
[1773491398770,11.73892742,87.05,87.033,0.45207115]
[1773491398971,11.48769962,87.05,87.033,0.45207115]
[1773491408692,0.2512278,87.05,87.033,0.45207115]
[1773491409577,0.2512278,87.058,87.035,0.45305122]
[1773491410072,0.2512278,87.058,87.026,0.45305122]
[1773491410771,11.48672708,87.057,87.026,0.45305122]
[1773491410971,0.2512278,87.056,87.026,0.45305122]
[1773491413675,0.2512278,87.054,87.026,0.45305122]
[1773491415385,0.2512278,87.054,87.028,0.45305122]
[1773491416787,0.2512278,87.052,87.028,0.45305122]
[1773491418790,0.2512278,87.05,87.028,0.45305122]
[1773491419891,0.2512278,87.048,87.028,0.45305122]
[1773491424085,0.2512278,87.046,87.016,0.45584976]
[1773491424990,11.73953844,87.045,87.018,0.45584976]
[1773491426291,11.73953844,87.045,87.021,0.45584976]
[1773491428898,11.73953844,87.045,87.022,0.45584976]
[1773491434510,0.2512278,87.045,87.024,0.45584976]
[1773491434697,11.48844262,87.044,87.024,0.45584976]
[1773491436012,0.2512278,87.044,87.024,0.45584976]
[1773491437903,11.73973036,87.044,87.024,0.45584976]